bitfinex/quotes_BTCUSD_20240927
["timestamp","ask_amount","ask_price","bid_price","bid_amount"]
[1727465245778,0.33144388,65923.0,65922.0,0.000828]
[1727465245991,0.33244388,65923.0,65922.0,0.000828]
[1727465246418,0.23674388,65923.0,65922.0,0.17614383]
[1727465246845,0.23674388,65923.0,65922.0,0.18883569]
[1727465247097,0.23674388,65923.0,65922.0,0.01351986]
[1727465247312,0.23574388,65923.0,65922.0,0.01351986]
[1727465247523,0.35352797,65923.0,65922.0,0.01351986]
[1727465247735,0.35352797,65923.0,65922.0,0.000828]
[1727465248181,0.35252797,65923.0,65922.0,0.000828]
[1727465248426,0.35252797,65923.0,65922.0,0.002828]
[1727465249721,0.35252797,65923.0,65922.0,0.004828]
[1727465254131,0.23574388,65923.0,65922.0,0.004828]
[1727465255400,0.32854388,65923.0,65922.0,0.004828]
[1727465262592,0.32854388,65923.0,65922.0,0.000828]
[1727465262823,0.32854388,65923.0,65922.0,0.002828]
[1727465263052,0.32854388,65923.0,65922.0,0.001828]
[1727465263320,0.45553408,65923.0,65922.0,0.000828]
[1727465263569,0.46553408,65923.0,65922.0,0.000828]
[1727465263779,0.45553408,65923.0,65922.0,0.000828]
[1727465264000,0.4983169,65923.0,65922.0,0.001828]
[1727465265557,0.4893169,65923.0,65922.0,0.000828]
[1727465265756,0.4983169,65923.0,65922.0,0.001828]
[1727465271222,0.47453408,65923.0,65922.0,0.001828]
[1727465272293,0.57453408,65923.0,65922.0,0.001828]
[1727465272480,0.68962608,65923.0,65922.0,0.001828]
[1727465274475,0.71340926,65923.0,65922.0,0.001828]
[1727465277860,0.68962608,65923.0,65922.0,0.001828]
[1727465282246,0.71340931,65923.0,65922.0,0.001828]
[1727465284766,0.47132711,65923.0,65922.0,0.001828]
[1727465284977,0.44754388,65923.0,65922.0,0.001828]
[1727465285610,0.56263588,65923.0,65922.0,0.001828]
[1727465290240,0.35474388,65923.0,65922.0,0.001828]
[1727465290583,0.17204388,65923.0,65922.0,0.001828]
[1727465293160,0.16204388,65923.0,65922.0,0.001828]
[1727465293372,0.15304388,65923.0,65922.0,0.0136125]
[1727465293582,0.15304388,65923.0,65922.0,0.000828]
[1727465293781,0.16104388,65923.0,65922.0,0.001828]
[1727465294034,0.16104388,65923.0,65922.0,0.0146125]
[1727465294277,0.15304388,65923.0,65922.0,0.000828]
[1727465294480,0.15304388,65923.0,65922.0,0.11992]
[1727465294693,0.00135188,65923.0,65922.0,0.2284045]
[1727465294909,0.00135188,65923.0,65922.0,0.4569985]
[1727465295360,0.00135188,65923.0,65922.0,0.4549985]
[1727465296421,0.00135188,65923.0,65922.0,0.3013045]
[1727465297241,0.00135188,65923.0,65922.0,0.3053045]
[1727465297461,0.00135188,65923.0,65922.0,0.4569985]
[1727465297670,0.00135188,65923.0,65922.0,0.4529985]
[1727465297890,0.00135188,65923.0,65922.0,0.4549985]
[1727465298109,0.15304388,65923.0,65922.0,0.0156125]
[1727465298324,0.22902207,65923.0,65922.0,0.0156125]
[1727465298553,0.22902207,65923.0,65922.0,0.0166125]
[1727465298785,0.22902207,65923.0,65922.0,0.006828]
[1727465299007,0.32882207,65923.0,65922.0,0.006828]
[1727465299228,0.40982207,65923.0,65922.0,0.006828]
[1727465299885,0.40982207,65923.0,65922.0,0.003828]
[1727465300100,0.41482207,65923.0,65922.0,0.003828]
[1727465300342,0.41482207,65923.0,65922.0,0.000828]
[1727465300765,0.41982207,65923.0,65922.0,0.000828]
[1727465300975,0.41482207,65923.0,65922.0,0.000828]
[1727465301405,0.41982207,65923.0,65922.0,0.000828]
[1727465306126,0.34384388,65923.0,65922.0,0.000828]
[1727465317781,0.46684388,65923.0,65922.0,0.000828]
[1727465318192,0.46884388,65923.0,65922.0,0.000828]
[1727465318399,0.46384388,65923.0,65922.0,0.000828]
[1727465319020,0.46184388,65923.0,65922.0,0.000828]
[1727465319223,0.45884388,65923.0,65922.0,0.000828]
[1727465319476,0.63023194,65923.0,65922.0,0.000828]
[1727465319717,0.63023194,65923.0,65912.0,0.000828]
[1727465319718,0.427515,65913.0,65912.0,0.000828]
[1727465319935,0.60286644,65913.0,65912.0,0.000828]
[1727465320652,0.62665293,65913.0,65912.0,0.000828]
[1727465320859,0.78304099,65913.0,65912.0,0.000828]
[1727465321088,0.79704099,65913.0,65912.0,0.000828]
[1727465321550,0.78304099,65913.0,65912.0,0.000828]
[1727465321912,0.79704099,65913.0,65912.0,0.000828]
[1727465322111,0.81104099,65913.0,65912.0,0.000828]
[1727465323237,0.79704099,65913.0,65912.0,0.000828]
[1727465323448,0.81104099,65913.0,65912.0,0.000828]
[1727465323858,0.7872545,65913.0,65912.0,0.000828]
[1727465324057,0.7732545,65913.0,65912.0,0.000828]
[1727465324264,0.7872545,65913.0,65912.0,0.000828]
[1727465325659,0.7911813,65913.0,65912.0,0.000828]
[1727465326969,0.81496742,65913.0,65912.0,0.000828]
[1727465328245,0.7911813,65913.0,65912.0,0.000828]
[1727465329110,0.2836418,65913.0,65912.0,0.000828]
[1727465329333,0.279715,65913.0,65912.0,0.000828]
[1727465330944,0.251715,65913.0,65912.0,0.000828]
[1727465331385,0.264715,65913.0,65912.0,0.000828]
[1727465335296,0.58396598,65913.0,65912.0,0.000828]
[1727465335529,0.59110306,65913.0,65912.0,0.000828]
[1727465336827,0.434715,65913.0,65912.0,0.000828]
[1727465337052,0.45831817,65913.0,65912.0,0.000828]
[1727465337306,0.28831817,65913.0,65912.0,0.000828]
[1727465337758,0.16453243,65913.0,65912.0,0.000828]
[1727465337962,0.16453243,65913.0,65912.0,0.09201871]
[1727465338630,0.16453243,65913.0,65912.0,0.079028]
[1727465339064,0.15853243,65913.0,65912.0,0.000828]
[1727465339504,0.25841087,65913.0,65912.0,0.002828]
[1727465340184,0.15153243,65913.0,65912.0,0.002828]
[1727465340412,0.15153243,65913.0,65912.0,0.000828]
[1727465340817,0.15153243,65913.0,65912.0,0.003828]
[1727465341058,0.15153243,65913.0,65912.0,0.002828]
[1727465341464,0.15153243,65913.0,65912.0,0.003828]
[1727465343379,0.00135188,65923.0,65913.0,0.0914]
[1727465343628,0.151708,65916.0,65915.0,0.0831]
[1727465343840,0.151708,65916.0,65915.0,0.09603357]
[1727465344522,0.151708,65916.0,65915.0,0.0831]
[1727465344742,0.2275599,65916.0,65915.0,0.0831]
[1727465344992,0.2275599,65916.0,65913.0,0.0914]
[1727465344993,0.151712,65914.0,65913.0,0.0914]
[1727465345441,0.151712,65914.0,65913.0,0.10433402]
[1727465345653,0.37816298,65914.0,65913.0,0.10433402]
[1727465345865,0.37816298,65914.0,65913.0,0.01293402]
[1727465345866,0.151712,65914.0,65913.0,0.01293402]
[1727465346089,0.151715,65913.0,65912.0,0.000828]
[1727465347449,0.151715,65913.0,65912.0,0.002828]
[1727465348360,0.15153212,65913.0,65912.0,0.002828]
[1727465348571,0.15153212,65913.0,65912.0,0.003828]
[1727465350467,0.15318812,65913.0,65912.0,0.003828]
[1727465358562,0.001656,65913.0,65912.0,0.51432716]
[1727465358782,0.001656,65913.0,65912.0,0.65759419]
[1727465359008,0.001656,65913.0,65912.0,0.33897572]
[1727465363293,0.001656,65913.0,65912.0,0.18725872]
[1727465363542,0.153371,65913.0,65912.0,0.01675872]
[1727465363980,0.153371,65913.0,65912.0,0.003828]
[1727465382211,0.153371,65913.0,65912.0,0.003828]
[1727465384507,0.153371,65913.0,65912.0,0.01672759]
[1727465384711,0.153371,65913.0,65912.0,0.003828]
[1727465384918,0.153371,65913.0,65912.0,0.01672406]
[1727465385129,0.153371,65913.0,65912.0,0.00354336]
[1727465385309,0.153371,65913.0,65912.0,0.01643942]
[1727465386395,0.001656,65913.0,65912.0,0.01643942]
[1727465386603,0.153371,65913.0,65912.0,0.01643942]
[1727465386838,0.001656,65913.0,65912.0,0.01643942]
[1727465387020,0.153371,65913.0,65912.0,0.01643942]
[1727465387235,0.001656,65913.0,65912.0,0.16815642]
[1727465389121,0.001656,65913.0,65912.0,0.01643942]
[1727465389543,0.001656,65913.0,65912.0,0.16815642]
[1727465389950,0.001656,65913.0,65912.0,0.01643942]
[1727465391729,0.153371,65913.0,65912.0,0.01643942]
[1727465392023,0.001656,65913.0,65912.0,0.01643942]
[1727465395595,0.001656,65913.0,65912.0,0.16815642]
[1727465396024,0.001656,65913.0,65912.0,0.01643942]
[1727465396581,0.001656,65913.0,65912.0,0.16815642]
[1727465397024,0.001656,65913.0,65912.0,0.01643942]
[1727465397261,0.001656,65913.0,65912.0,0.16815642]
[1727465397507,0.001656,65913.0,65912.0,0.01643942]
[1727465397931,0.001656,65913.0,65912.0,0.16815642]
[1727465398114,0.001656,65913.0,65912.0,0.01643942]
[1727465398578,0.001656,65913.0,65912.0,0.16815642]
[1727465399197,0.001656,65913.0,65912.0,0.01643942]
[1727465399693,0.001656,65913.0,65912.0,0.16815642]
[1727465401510,0.001656,65913.0,65912.0,0.01643942]
[1727465401727,0.153371,65913.0,65912.0,0.01643942]
[1727465403005,0.153371,65913.0,65912.0,0.01643942]
[1727465404907,0.001656,65913.0,65912.0,0.01643942]
[1727465405142,0.153371,65913.0,65912.0,0.01643942]
[1727465406448,0.001656,65913.0,65912.0,0.16815642]
[1727465406653,0.001656,65913.0,65912.0,0.01643942]
[1727465407775,0.001656,65913.0,65912.0,0.17119046]
[1727465407997,0.001656,65913.0,65912.0,0.16815642]
[1727465408694,0.001656,65913.0,65912.0,0.01643942]
[1727465408945,0.153371,65913.0,65912.0,0.01643942]
[1727465409158,0.49604614,65913.0,65912.0,0.01643942]
[1727465409589,0.57804614,65913.0,65912.0,0.01643942]
[1727465409803,0.4026947,65913.0,65912.0,0.01643942]
[1727465411337,0.334371,65913.0,65912.0,0.01643942]
[1727465412197,0.235371,65913.0,65912.0,0.01643942]
[1727465412467,0.153371,65913.0,65912.0,0.01643942]
[1727465414639,0.001656,65913.0,65912.0,0.26225642]
[1727465414860,0.001656,65913.0,65912.0,0.41359771]
[1727465415112,0.001656,65913.0,65912.0,0.48566914]
[1727465415341,0.001656,65913.0,65912.0,0.50474436]
[1727465415589,0.001656,65913.0,65912.0,0.61611582]
[1727465415824,0.001656,65913.0,65912.0,0.61411582]
[1727465416049,0.001656,65913.0,65912.0,0.61811582]
[1727465416502,0.001656,65913.0,65912.0,0.50074436]
[1727465416960,0.002656,65913.0,65912.0,0.50274436]
[1727465417189,0.002656,65913.0,65912.0,0.61811582]
[1727465417420,0.002656,65913.0,65912.0,0.59240231]
[1727465417633,0.002656,65913.0,65912.0,0.50174436]
[1727465417862,0.003656,65913.0,65912.0,0.50474436]
[1727465418088,0.002656,65913.0,65912.0,0.50174436]
[1727465418545,0.002656,65913.0,65912.0,0.57171313]
[1727465418819,0.001656,65913.0,65912.0,0.56771313]
[1727465419033,0.002656,65913.0,65912.0,0.50574436]
[1727465419256,0.003656,65913.0,65912.0,0.50974436]
[1727465419471,0.003656,65913.0,65912.0,0.57770114]
[1727465421229,0.003656,65913.0,65912.0,0.57768964]
[1727465421917,0.003656,65913.0,65912.0,0.57968964]
[1727465422146,0.003656,65913.0,65912.0,0.57768151]
[1727465422361,0.003656,65913.0,65912.0,0.50974436]
[1727465422605,0.003656,65913.0,65912.0,0.57768151]
[1727465422851,0.003656,65913.0,65912.0,0.83606957]
[1727465423063,0.003656,65913.0,65912.0,0.80113242]
[1727465424013,0.003656,65913.0,65912.0,0.79713242]
[1727465424014,0.002656,65913.0,65912.0,0.79713242]
[1727465424260,0.002656,65913.0,65912.0,0.80013242]
[1727465424261,0.003656,65913.0,65912.0,0.80013242]
[1727465424471,0.003656,65913.0,65912.0,0.9072828]
[1727465424472,0.002656,65913.0,65912.0,0.9072828]
[1727465424903,0.003656,65913.0,65912.0,0.9112828]
[1727465426512,0.003656,65913.0,65912.0,0.79813242]
[1727465426954,0.003656,65913.0,65912.0,0.911249]
[1727465427177,0.003656,65913.0,65912.0,0.79813242]
[1727465427421,0.003656,65913.0,65912.0,0.27715642]
[1727465427653,0.003656,65913.0,65912.0,0.17215642]
[1727465428080,0.003656,65913.0,65912.0,0.6969958]
[1727465428339,0.00135188,65923.0,65912.0,0.6969958]
[1727465428340,0.00135188,65923.0,65922.0,0.151694]
[1727465428566,0.00135188,65923.0,65922.0,0.76853338]
[1727465428779,0.00135188,65923.0,65922.0,0.93845508]
[1727465429248,0.00135188,65923.0,65922.0,0.96145508]
[1727465429466,0.00135188,65923.0,65922.0,1.02928575]
[1727465429691,0.00135188,65923.0,65922.0,0.96145508]
[1727465429921,0.00135188,65923.0,65922.0,1.02928595]
[1727465430555,0.00135188,65923.0,65922.0,0.93645508]
[1727465430775,0.00335188,65923.0,65922.0,0.99368473]
[1727465430987,0.00235188,65923.0,65922.0,0.99068473]
[1727465431194,0.00235188,65923.0,65922.0,0.94545508]
[1727465431415,0.00235188,65923.0,65922.0,0.98568473]
[1727465431643,0.00235188,65923.0,65922.0,0.95045508]
[1727465432101,0.00235188,65923.0,65922.0,0.94045508]
[1727465432555,0.00335188,65923.0,65922.0,0.95445508]
[1727465433112,0.00235188,65923.0,65922.0,0.95045508]
[1727465433555,0.00335188,65923.0,65922.0,0.96445508]
[1727465433764,0.00235188,65923.0,65922.0,0.95245508]
[1727465433996,0.00135188,65923.0,65922.0,0.93845508]
[1727465434209,0.00335188,65923.0,65922.0,0.96645508]
[1727465434844,0.00235188,65923.0,65922.0,0.95245508]
[1727465435061,0.00135188,65923.0,65922.0,0.95245508]
[1727465435516,0.00135188,65923.0,65922.0,0.93845508]
[1727465435719,0.00135188,65923.0,65922.0,0.95245508]
[1727465436380,0.00235188,65923.0,65922.0,0.98945508]
[1727465436592,0.00135188,65923.0,65922.0,0.97545508]
[1727465437013,0.00235188,65923.0,65922.0,0.97545508]
[1727465437475,0.00335188,65923.0,65922.0,0.98945508]
[1727465437984,0.00235188,65923.0,65922.0,0.97545508]
[1727465438441,0.00235188,65923.0,65922.0,0.98545508]
[1727465438657,0.00135188,65923.0,65922.0,1.03925012]
[1727465438880,0.00135188,65923.0,65922.0,0.97145508]
[1727465439100,0.00235188,65923.0,65922.0,1.07584847]
[1727465439339,0.00235188,65923.0,65922.0,0.98545508]
[1727465439555,0.00335188,65923.0,65922.0,2.34939497]
[1727465439795,0.00335188,65923.0,65922.0,2.33539497]
[1727465440027,0.00435188,65923.0,65922.0,2.34939497]
[1727465440234,0.00435188,65923.0,65922.0,2.25905508]
[1727465440462,0.00135188,65923.0,65922.0,2.29880572]
[1727465440691,0.00335188,65923.0,65922.0,2.32680572]
[1727465441370,0.00235188,65923.0,65922.0,2.31280572]
[1727465441597,0.00235188,65923.0,65922.0,2.24505508]
[1727465442669,0.00135188,65923.0,65922.0,2.02685508]
[1727465442886,0.00135188,65923.0,65922.0,2.04085508]
[1727465442887,0.00235188,65923.0,65922.0,2.04085508]
[1727465443124,0.00235188,65923.0,65922.0,1.71417908]
[1727465443335,0.00135188,65923.0,65922.0,1.70017908]
[1727465443562,0.00235188,65923.0,65922.0,1.71417908]
[1727465444202,0.00335188,65923.0,65922.0,1.72817908]
[1727465444488,0.00135188,65923.0,65922.0,1.85656714]
[1727465444715,0.00135188,65923.0,65922.0,1.43882764]
[1727465444716,0.00235188,65923.0,65922.0,1.43882764]
[1727465444943,0.00335188,65923.0,65922.0,1.45282764]
[1727465445381,0.00335188,65923.0,65922.0,0.19322764]
[1727465452430,0.00335188,65923.0,65922.0,0.36857908]
[1727465452874,0.17695188,65923.0,65922.0,0.19322764]
[1727465454176,0.36898417,65923.0,65922.0,0.04153364]
[1727465454422,0.17695188,65923.0,65922.0,0.04153364]
[1727465454632,0.32864388,65923.0,65922.0,0.04153364]
[1727465455059,0.32764388,65923.0,65922.0,0.014]
[1727465455562,0.17695188,65923.0,65922.0,0.025]
[1727465455795,0.17695188,65923.0,65922.0,0.19016394]
[1727465456281,0.17695188,65923.0,65922.0,0.17616394]
[1727465456282,0.00235188,65923.0,65922.0,0.17616394]
[1727465456493,0.00335188,65923.0,65922.0,0.18716394]
[1727465457399,0.00235188,65923.0,65922.0,0.17616394]
[1727465457619,0.00335188,65923.0,65922.0,0.18516394]
[1727465458083,0.00235188,65923.0,65922.0,0.17616394]
[1727465458313,0.00335188,65923.0,65922.0,0.18716394]
[1727465458811,0.08575188,65923.0,65922.0,0.18716394]
[1727465472394,0.00335188,65923.0,65922.0,0.18716394]
[1727465473282,0.00335188,65923.0,65922.0,0.18916394]
[1727465473490,0.00335188,65923.0,65922.0,0.42451172]
[1727465473699,0.00335188,65923.0,65922.0,0.41947823]
[1727465474130,0.00335188,65923.0,65922.0,0.28716394]
[1727465480933,0.00335188,65923.0,65922.0,0.2901974]
[1727465481153,0.00335188,65923.0,65922.0,0.28716394]
[1727465483348,0.00335188,65923.0,65922.0,0.2901974]
[1727465483563,0.00335188,65923.0,65922.0,0.33558332]
[1727465483792,0.00335188,65923.0,65922.0,0.48893792]
[1727465484239,0.00335188,65923.0,65922.0,0.38893792]
[1727465484459,0.00335188,65923.0,65922.0,0.48893792]
[1727465485556,0.00335188,65923.0,65922.0,0.443552]
[1727465486186,0.00335188,65923.0,65922.0,0.60583994]
[1727465486399,0.00335188,65923.0,65922.0,0.69661179]
[1727465486615,0.00335188,65923.0,65922.0,0.72930475]
[1727465487071,0.00335188,65923.0,65922.0,0.61583994]
[1727465487292,0.00335188,65923.0,65922.0,0.72927216]
[1727465487504,0.00335188,65923.0,65922.0,0.78973994]
[1727465488404,0.00335188,65923.0,65922.0,0.78773994]
[1727465489083,0.00335188,65923.0,65922.0,0.78973994]
[1727465491980,0.001656,65930.0,65929.0,0.68766586]
[1727465492207,0.001656,65930.0,65929.0,0.70336807]
[1727465492422,0.001656,65930.0,65929.0,0.68766586]
[1727465492632,0.002656,65930.0,65929.0,0.71636807]
[1727465492850,0.002656,65930.0,65929.0,0.70066586]
[1727465493916,0.001656,65930.0,65929.0,0.70166586]
[1727465494600,0.001656,65930.0,65929.0,0.71566586]
[1727465495483,0.001656,65930.0,65929.0,0.82897732]
[1727465497305,0.001656,65930.0,65929.0,0.71566586]
[1727465498420,0.001656,65930.0,65929.0,0.80624897]
[1727465499789,0.001656,65930.0,65929.0,0.71566586]
[1727465500204,0.001656,65930.0,65929.0,0.80622904]
[1727465500459,0.001656,65930.0,65929.0,0.71566586]
[1727465501051,0.001656,65930.0,65929.0,0.91516586]
[1727465501253,0.001656,65930.0,65929.0,1.00573744]
[1727465501463,0.001656,65930.0,65929.0,0.91516586]
[1727465501923,0.001656,65930.0,65929.0,0.9308043]
[1727465502154,0.001656,65930.0,65929.0,0.9288043]
[1727465502324,0.001656,65930.0,65929.0,0.84486963]
[1727465504362,0.001656,65930.0,65929.0,0.82923119]
[1727465505197,0.001656,65930.0,65929.0,0.83123119]
[1727465505406,0.001656,65930.0,65929.0,0.80659084]
[1727465505623,0.001656,65930.0,65929.0,0.73866586]
[1727465505831,0.001656,65930.0,65929.0,0.80659094]
[1727465506263,0.001656,65930.0,65929.0,0.80658923]
[1727465506474,0.001656,65930.0,65929.0,0.80858923]
[1727465506694,0.001656,65930.0,65929.0,0.80658923]
[1727465507137,0.001656,65930.0,65929.0,0.73866586]
[1727465507356,0.001656,65930.0,65929.0,0.8065886]
[1727465507570,0.001656,65930.0,65929.0,0.73866586]
[1727465508242,0.001656,65930.0,65929.0,0.754244]
[1727465509161,0.001656,65930.0,65929.0,0.80658791]
[1727465509598,0.001656,65930.0,65929.0,0.80858791]
[1727465510038,0.001656,65930.0,65929.0,0.73866586]
[1727465510255,0.001656,65930.0,65929.0,0.74066586]
[1727465511121,0.001656,65930.0,65929.0,0.75632882]
[1727465513361,0.001656,65930.0,65929.0,0.84690136]
[1727465514229,0.001656,65930.0,65929.0,0.94670136]
[1727465514445,0.001656,65930.0,65929.0,0.91966586]
[1727465514660,0.001656,65930.0,65929.0,1.0486373]
[1727465515094,0.001656,65930.0,65929.0,0.93542163]
[1727465515318,0.001656,65930.0,65929.0,0.91966586]
[1727465516429,0.22645098,65942.0,65941.0,0.15665]
[1727465516667,0.22645098,65942.0,65941.0,0.50366354]
[1727465516867,0.22645098,65942.0,65941.0,0.50063103]
[1727465517103,0.22645098,65949.0,65948.0,0.151634]
[1727465517322,0.22645098,65949.0,65948.0,0.32698544]
[1727465517538,0.0819,65950.0,65949.0,0.151632]
[1727465517759,0.178,65950.0,65949.0,0.151632]
[1727465517983,0.178,65950.0,65949.0,0.16494912]
[1727465519735,0.178,65950.0,65949.0,0.17694912]
[1727465520955,0.32963,65950.0,65949.0,0.02531712]
[1727465521389,0.32963,65950.0,65949.0,0.012]
[1727465522073,0.330559,65937.0,65936.0,1.2596]
[1727465522310,0.151662,65936.0,65935.0,0.0491808]
[1727465522543,0.151662,65936.0,65932.0,0.15167]
[1727465522544,0.232562,65936.0,65932.0,0.15167]
[1727465522769,0.232562,65936.0,65933.0,0.151668]
[1727465523224,0.098,65937.0,65935.0,0.151664]
[1727465523444,0.075,65936.0,65932.0,0.303339]
[1727465523730,0.075,65936.0,65929.0,0.303352]
[1727465523932,0.075,65936.0,65935.0,0.151664]
[1727465524157,0.075,65936.0,65933.0,0.303335]
[1727465524158,0.075,65936.0,65933.0,0.467002]
[1727465524388,0.075,65936.0,65934.0,0.16526213]
[1727465525015,0.075,65936.0,65935.0,0.157664]
[1727465525227,0.075,65936.0,65935.0,0.0195959]
[1727465525644,0.28486813,65936.0,65935.0,0.0195959]
[1727465525859,0.075,65936.0,65935.0,0.0195959]
[1727465526291,0.075,65936.0,65935.0,0.0135959]
[1727465527126,0.075,65936.0,65935.0,0.005]
[1727465527343,0.075,65936.0,65935.0,0.1752599]
[1727465528721,0.075,65936.0,65935.0,0.0235959]
[1727465529835,0.4116033,65936.0,65935.0,0.0235959]
[1727465530060,0.326162,65936.0,65935.0,0.0235959]
[1727465530284,0.326162,65936.0,65935.0,0.01]
[1727465530945,0.326162,65936.0,65935.0,0.005]
[1727465531178,0.303336,65934.0,65928.0,0.15168]
[1727465531407,0.151671,65932.0,65928.0,0.15168]
[1727465531619,0.151671,65932.0,65929.0,0.01359726]
[1727465531839,0.082,65931.0,65929.0,0.01359726]
[1727465532698,0.082,65931.0,65930.0,0.151676]
[1727465532917,0.082,65931.0,65926.0,0.303368]
[1727465533173,0.082,65931.0,65930.0,0.01374998]
[1727465533381,0.082,65931.0,65929.0,0.004]
[1727465533594,0.082,65931.0,65930.0,0.01374998]
[1727465533805,0.328773,65931.0,65930.0,0.01374998]
[1727465534014,0.37997136,65931.0,65930.0,0.02074998]
[1727465534229,0.37997136,65931.0,65930.0,0.01374998]
[1727465534668,0.151676,65930.0,65925.0,0.32703744]
[1727465534876,0.151679,65929.0,65925.0,0.151686]
[1727465535092,0.0766,65928.0,65925.0,0.151686]
[1727465535803,0.0766,65928.0,65925.0,0.151687]
[1727465536465,0.0766,65928.0,65925.0,0.009]
[1727465536702,0.0766,65928.0,65925.0,0.160687]
[1727465536917,0.0766,65928.0,65925.0,0.151687]
[1727465537143,0.0766,65928.0,65925.0,0.01]
[1727465537365,0.0776,65928.0,65925.0,0.02]
[1727465537578,0.22928,65928.0,65925.0,0.171687]
[1727465537815,0.0776,65928.0,65925.0,0.171687]
[1727465538208,0.0776,65928.0,65926.0,0.151684]
[1727465539059,0.0766,65928.0,65925.0,0.01]
[1727465539286,0.0766,65928.0,65927.0,0.16542982]
[1727465539516,0.0776,65928.0,65926.0,0.17543204]
[1727465539753,0.0776,65928.0,65927.0,0.01374782]
[1727465540184,0.0766,65928.0,65927.0,0.01374782]
[1727465540438,0.0776,65928.0,65927.0,0.16542982]
[1727465540918,0.0766,65928.0,65927.0,0.17542982]
[1727465542274,0.0776,65928.0,65927.0,0.18542982]
[1727465545674,0.001,65928.0,65927.0,0.18542982]
[1727465558579,0.001,65928.0,65927.0,0.18708582]
[1727465560251,0.0762,65928.0,65927.0,0.18708582]
[1727465563165,0.0762,65928.0,65927.0,0.03540382]
[1727465563389,0.0762,65928.0,65927.0,0.30207881]
[1727465563609,0.001,65928.0,65927.0,0.30207881]
[1727465564671,0.001,65928.0,65927.0,0.30511206]
[1727465565370,0.001,65928.0,65927.0,0.3731246]
[1727465565579,0.001,65928.0,65927.0,0.37009135]
[1727465566218,0.001,65928.0,65927.0,0.30207881]
[1727465566454,0.001,65928.0,65927.0,0.35051414]
[1727465566640,0.001,65928.0,65927.0,0.30207881]
[1727465566888,0.001,65928.0,65927.0,0.35051476]
[1727465567096,0.001,65928.0,65927.0,0.30207881]
[1727465567308,0.001,65928.0,65927.0,0.30511209]
[1727465567512,0.001,65928.0,65927.0,0.37009135]
[1727465567727,0.001,65928.0,65927.0,0.30207881]
[1727465567924,0.001,65928.0,65927.0,0.37021486]
[1727465568518,0.001,65928.0,65927.0,0.25522187]
[1727465568735,0.001,65928.0,65927.0,0.18708582]
[1727465569139,0.001,65928.0,65927.0,0.30207881]
[1727465571654,0.001,65928.0,65927.0,0.37324821]
[1727465571879,0.001,65928.0,65927.0,0.30207881]
[1727465572085,0.001,65928.0,65927.0,0.30511204]
[1727465572613,0.001,65928.0,65927.0,0.39598096]
[1727465572711,0.001,65928.0,65927.0,0.39597666]
[1727465572909,0.001,65928.0,65927.0,0.39294343]
[1727465574221,0.001,65928.0,65927.0,0.39295517]
[1727465574433,0.001,65928.0,65927.0,0.52238763]
[1727465575081,0.001,65928.0,65927.0,0.40207881]
[1727465586637,0.001,65928.0,65927.0,0.51562703]
[1727465591289,0.001,65928.0,65927.0,0.51561843]
[1727465593122,0.0005,65928.0,65927.0,0.51561843]
[1727465597449,0.0005,65928.0,65927.0,0.40207881]
[1727465597685,0.0005,65928.0,65927.0,0.53593785]
[1727465599020,0.0005,65928.0,65927.0,0.90532579]
[1727465599255,0.078,65945.0,65941.0,0.26664299]
[1727465599256,0.1681,65945.0,65941.0,0.26664299]
[1727465599474,0.1681,65945.0,65941.0,0.31206777]
[1727465599691,0.1681,65945.0,65941.0,0.27807233]
[1727465599901,0.1681,65945.0,65944.0,0.151643]
[1727465600141,0.1681,65945.0,65944.0,0.26663599]
[1727465600582,0.1681,65945.0,65944.0,0.27806465]
[1727465601646,0.1681,65945.0,65944.0,0.28506465]
[1727465602961,0.1681,65945.0,65944.0,0.29106465]
[1727465603433,0.1681,65945.0,65944.0,0.02442866]
[1727465603434,0.319741,65945.0,65944.0,0.02442866]
[1727465603876,0.319741,65945.0,65944.0,0.013]
[1727465604413,0.319741,65945.0,65944.0,0.01739334]
[1727465605074,0.0901,65942.0,65938.0,0.151657]
[1727465605280,0.241748,65942.0,65938.0,0.151657]
[1727465605485,0.241748,65942.0,65939.0,0.16304946]
[1727465605693,0.241748,65942.0,65939.0,0.01139446]
[1727465606127,0.241748,65942.0,65938.0,0.151656]
[1727465606323,0.241748,65942.0,65940.0,0.01139424]
[1727465606530,0.241748,65942.0,65938.0,0.151656]
[1727465606740,0.0901,65942.0,65941.0,0.01139401]
[1727465606954,0.0901,65942.0,65939.0,0.154653]
[1727465607163,0.0901,65942.0,65941.0,0.01139401]
[1727465607371,0.0901,65942.0,65939.0,0.154653]
[1727465607587,0.0901,65942.0,65941.0,0.01139401]
[1727465607799,0.0901,65942.0,65939.0,0.154653]
[1727465608006,0.241748,65942.0,65941.0,0.01139401]
[1727465608254,0.241748,65942.0,65939.0,0.006]
[1727465608463,0.241748,65942.0,65941.0,0.01139401]
[1727465608678,0.241748,65942.0,65940.0,0.01139424]
[1727465608869,0.0901,65942.0,65941.0,0.01439401]
[1727465609084,0.0901,65942.0,65941.0,0.01139401]
[1727465609754,0.0901,65942.0,65941.0,0.01439401]
[1727465610417,0.0901,65942.0,65941.0,0.16604401]
[1727465610628,0.0901,65942.0,65941.0,0.01439401]
[1727465611372,0.0901,65942.0,65941.0,0.16604401]
[1727465611585,0.0901,65942.0,65941.0,0.01439401]
[1727465611995,0.0901,65942.0,65941.0,0.01739401]
[1727465613799,0.241748,65942.0,65941.0,0.01739401]
[1727465614016,0.0901,65942.0,65941.0,0.16904401]
[1727465614247,0.0901,65942.0,65941.0,0.01739401]
[1727465615563,0.0901,65942.0,65941.0,0.16904401]
[1727465616759,0.000828,65945.0,65942.0,0.303295]
[1727465616967,0.000828,65945.0,65944.0,0.151643]
[1727465617398,0.000828,65945.0,65944.0,0.16303634]
[1727465619161,0.000828,65945.0,65944.0,0.16903634]
[1727465620464,0.000828,65945.0,65944.0,0.16303634]
[1727465620687,0.000828,65945.0,65944.0,0.17703634]
[1727465622196,0.000828,65945.0,65944.0,0.1800691]
[1727465622430,0.000828,65945.0,65944.0,0.41369017]
[1727465622658,0.000828,65945.0,65944.0,0.41065741]
[1727465622899,0.000828,65945.0,65944.0,0.52413329]
[1727465623133,0.000828,65945.0,65944.0,0.67942123]
[1727465623596,0.000828,65945.0,65944.0,0.56594535]
[1727465624528,0.000828,65945.0,65944.0,0.6566042]